Workbook

Sheet Лист1
A1: Школа | C1: ГБОУ "Набережночелнинская школа №67 для детей с ограниченными возможностями здоровья " | F1: Утвердил: | G1: должность | H1: директор
A2: Типовое примерное меню приготавливаемых блюд | G2: фамилия | H2: Тузова Н.Д.
A3: Возрастная категория | E3: 7-11 лет | G3: дата | H3: 23 | I3: 03 | J3: 2026
H4: день | I4: месяц | J4: год
A5: Неделя | B5: День недели | C5: Прием пищи | D5: Раздел меню | E5: Блюда | F5: Вес блюда, г | G5: Белки | H5: Жиры | I5: Углеводы | J5: Калорийность | K5: № рецептуры | L5: Цена
A6: 1 | B6: 1 | C6: Завтрак | D6: гор.блюдо | E6: каша молочная ячневая с маслом | F6: 203 | G6: 7,32 | H6: 5,21 | I6: 39.7 | J6: 235.01 | K6: 302/04
D8: гор.напиток | E8: Кофейный напиток полусладкий | F8: 200 | G8: 3.02 | H8: 5.22 | I8: 15.9 | J8: 122.65 | K8: ТТК-343н
D9: хлеб | E9: Бутерброд с маслом с сыром | F9: 45 | G9: 5.25 | H9: 6.64 | I9: 14.98 | J9: 140.7 | K9: 3/04
D10: фрукты | E10: Десерт фруктовый "Яблоко" | F10: 140 | G10: 0.56 | H10: 0.56 | I10: 12,6 | J10: 57,68 | K10: ТТК-495н
D13: итого | F13: =SUM(F6:F12) -> 588 | G13: =G6+G7+G8+G9+G10 -> 16.15 | H13: =H6+H7+H8+H9+H10 -> 17.63 | I13: 83.18 | J13: 556.04
A14: =A6 -> 1 | B14: =B6 -> 1 | C14: Завтрак 2 | D14: фрукты
D17: итого | F17: =SUM(F14:F16) -> 0 | G17: =SUM(G14:G16) -> 0 | H17: 0 | I17: 0 | J17: 0 | L17: =SUM(L14:L22) -> 0
A18: =A6 -> 1 | B18: =B6 -> 1 | C18: Обед | D18: закуска
D19: 1 блюдо
D20: 2 блюдо
D21: гарнир
D22: напиток
D23: хлеб бел.
D24: хлеб черн.
D27: итого | F27: =SUM(F18:F26) -> 0 | G27: =SUM(G18:G26) -> 0 | H27: 0 | I27: 0 | J27: 0 | L27: =SUM(L18:L26) -> 0
A28: =A6 -> 1 | B28: =B6 -> 1 | C28: Полдник | D28: булочное
D29: напиток
D32: итого | F32: =SUM(F28:F31) -> 0 | G32: =SUM(G28:G31) -> 0 | H32: 0 | I32: 0 | J32: 0 | L32: =SUM(L28:L31) -> 0
A33: =A6 -> 1 | B33: =B6 -> 1 | C33: Ужин | D33: гор.блюдо
D34: гарнир
D35: напиток
D36: хлеб
D39: итого | F39: =SUM(F33:F38) -> 0 | G39: =SUM(G33:G38) -> 0 | H39: 0 | I39: 0 | J39: 0 | L39: =SUM(L33:L41) -> 0
A40: =A6 -> 1 | B40: =B6 -> 1 | C40: Ужин 2 | D40: кисломол.
D41: булочное
D42: напиток
D43: фрукты
D46: итого
A47: =A6 -> 1 | B47: =B6 -> 1 | C47: Итого за день:
A48: 1 | B48: 2 | C48: Завтрак | D48: гор.блюдо | E48: омлет натуральный с маслом | F48: 203 | G48: 19.26 | H48: 26.45 | I48: 2,91 | J48: 326.71 | K48: 310/04
D50: гор.напиток | E50: Чай с лимоном | F50: 207 | G50: 0.27 | H50: 0.06 | I50: 15.28 | J50: 62.73 | K50: 686/04
D51: хлеб | E51: Бутерброд с повидлом | F51: 45 | G51: 2.33 | H51: 3.89 | I51: 20.84 | J51: 127.73 | K51: 2/04
D52: фрукты | E52: Десерт фруктовый Апельсин | F52: 140 | G52: 1,26 | H52: 0 | I52: 11,76 | J52: 52.08 | K52: ТТК-495н
D55: итого | F55: =F48+F49+F50+F51+F52 -> 595 | G55: =G48+G49+G50+G51+G52 -> 23.12 | H55: 30.4 | I55: 50.79 | J55: 569.25 | L55: =SUM(L48:L54) -> 0
A56: =A48 -> 1 | B56: =B48 -> 2 | C56: Завтрак 2 | D56: фрукты
D59: итого | F59: =SUM(F56:F58) -> 0 | G59: =SUM(G56:G58) -> 0 | H59: =SUM(H56:H58) -> 0 | I59: =SUM(I56:I58) -> 0 | J59: =SUM(J56:J58) -> 0 | L59: =SUM(L56:L64) -> 0
A60: =A48 -> 1 | B60: =B48 -> 2 | C60: Обед | D60: закуска
D61: 1 блюдо
D62: 2 блюдо
D63: гарнир
D64: напиток
D65: хлеб бел.
D66: хлеб черн.
D69: итого | F69: =SUM(F60:F68) -> 0 | G69: =SUM(G60:G68) -> 0 | H69: =SUM(H60:H68) -> 0 | I69: =SUM(I60:I68) -> 0 | J69: =SUM(J60:J68) -> 0 | L69: =L60+L61+L62+L63+L64+L65+L66+L67+L68 -> 0
A70: =A48 -> 1 | B70: =B48 -> 2 | C70: Полдник | D70: булочное
D71: напиток
D74: итого | F74: =SUM(F70:F73) -> 0 | G74: =SUM(G70:G73) -> 0 | H74: =SUM(H70:H73) -> 0 | I74: =SUM(I70:I73) -> 0 | J74: =SUM(J70:J73) -> 0 | L74: =SUM(L70:L73) -> 0
A75: =A48 -> 1 | B75: =B48 -> 2 | C75: Ужин | D75: гор.блюдо
D76: гарнир
D77: напиток
D78: хлеб
D81: итого | F81: =SUM(F75:F80) -> 0 | G81: =SUM(G75:G80) -> 0 | H81: =SUM(H75:H80) -> 0 | I81: =SUM(I75:I80) -> 0 | J81: =SUM(J75:J80) -> 0 | L81: =SUM(L75:L83) -> 0
A82: =A48 -> 1 | B82: =B48 -> 2 | C82: Ужин 2 | D82: кисломол.
D83: булочное
D84: напиток
D85: фрукты
D88: итого
A89: =A48 -> 1 | B89: =B48 -> 2 | C89: Итого за день:
A90: 1 | B90: 3 | C90: Завтрак | D90: гор.блюдо | E90: Суп молочный с геркулес | F90: 250 | G90: 5.73 | H90: 5,48 | I90: 16.52 | J90: 136.84 | K90: 161/04
E91: Яйцо вареное | F91: 48 | G91: 5.52 | H91: 5.04 | I91: 0 | J91: 67.44 | K91: 337/04
D92: гор.напиток | E92: Какао с молоком полусладкое | F92: 200 | G92: 3.39 | H92: 2.8 | I92: 16.98 | J92: 106.66 | K92: ТТК-198н
D93: хлеб | E93: Бутерброд с маслом с сыром | F93: 45 | G93: 5.25 | H93: 6.64 | I93: 14.98 | J93: 140.7 | K93: 3/04
D94: фрукты
D97: итого | F97: =F90+F91+F92+F93 -> 543 | G97: =G90+G91+G92+G93 -> 19.89 | H97: 19.96 | I97: 48.48 | J97: 451.64 | L97: 0
A98: =A90 -> 1 | B98: =B90 -> 3 | C98: Завтрак 2 | D98: фрукты
D101: итого | F101: =SUM(F98:F100) -> 0 | G101: =SUM(G98:G100) -> 0 | H101: =SUM(H98:H100) -> 0 | I101: =SUM(I98:I100) -> 0 | J101: =SUM(J98:J100) -> 0 | L101: =SUM(L98:L106) -> 0
A102: =A90 -> 1 | B102: =B90 -> 3 | C102: Обед
D111: итого
A112: =A90 -> 1 | B112: =B90 -> 3 | C112: Полдник | D112: булочное
D113: напиток
D116: итого | F116: =SUM(F112:F115) -> 0 | G116: =SUM(G112:G115) -> 0 | H116: =SUM(H112:H115) -> 0 | I116: =SUM(I112:I115) -> 0 | J116: =SUM(J112:J115) -> 0 | L116: =SUM(L109:L115) -> 0
A117: =A90 -> 1 | B117: =B90 -> 3 | C117: Ужин | D117: гор.блюдо
D118: гарнир
D119: напиток
D120: хлеб
D123: итого | F123: =SUM(F117:F122) -> 0 | G123: =SUM(G117:G122) -> 0 | H123: =SUM(H117:H122) -> 0 | I123: =SUM(I117:I122) -> 0 | J123: =SUM(J117:J122) -> 0 | L123: =SUM(L117:L125) -> 0
A124: =A90 -> 1 | B124: =B90 -> 3 | C124: Ужин 2 | D124: кисломол.
D125: булочное
D126: напиток
D127: фрукты
D130: итого
A131: =A90 -> 1 | B131: =B90 -> 3 | C131: Итого за день:
A132: 1 | B132: 4 | C132: Завтрак | D132: гор.блюдо | E132: Запеканка из творога "Ягодка" с повидлом | F132: 200 | G132: 29.16 | H132: 13,12 | I132: 62,42 | J132: 484.39 | K132: ТТК-521н
D134: гор.напиток | E134: Чай полусладкий | F134: 200 | G134: 0.2 | H134: 0.05 | I134: 5.06 | J134: 21.5 | K134: ТТК-475
D135: хлеб | E135: Бутерброд с маслом с сыром | F135: 40 | G135: 5,25 | H135: 6,64 | I135: 14.98 | J135: 140,7 | K135: 3/04
D136: фрукты | E136: Десерт фруктовый "Банан" | F136: 140 | G136: 2,1 | H136: 0 | I136: 29,4 | J136: 126 | K136: ТТК-495н
D139: итого | F139: =F132+F133+F134+F135+F136 -> 580 | G139: =G132+G133+G134+G135+G136 -> 36.71 | H139: =H132+H133+H134+H135+H136+H137+H138 -> 19.81 | I139: 111.86 | J139: 772.59 | L139: =SUM(L132:L138) -> 0
A140: =A132 -> 1 | B140: =B132 -> 4 | C140: Завтрак 2 | D140: фрукты
D143: итого | F143: =SUM(F140:F142) -> 0 | G143: =SUM(G140:G142) -> 0 | H143: =SUM(H140:H142) -> 0 | I143: =SUM(I140:I142) -> 0 | J143: =SUM(J140:J142) -> 0 | L143: =SUM(L140:L148) -> 0
A144: =A132 -> 1 | B144: =B132 -> 4 | C144: Обед | D144: закуска
D145: 1 блюдо
D146: 2 блюдо
D147: гарнир
D148: напиток
D149: хлеб бел.
D150: хлеб черн.
D153: итого
A154: =A132 -> 1 | B154: =B132 -> 4 | C154: Полдник | D154: булочное
D155: напиток
D158: итого | F158: =SUM(F154:F157) -> 0 | G158: =SUM(G154:G157) -> 0 | H158: =SUM(H154:H157) -> 0 | I158: =SUM(I154:I157) -> 0 | J158: =SUM(J154:J157) -> 0 | L158: =SUM(L151:L157) -> 0
A159: =A132 -> 1 | B159: =B132 -> 4 | C159: Ужин | D159: гор.блюдо
D160: гарнир
D161: напиток
D162: хлеб
D165: итого | F165: =SUM(F159:F164) -> 0 | G165: =SUM(G159:G164) -> 0 | H165: =SUM(H159:H164) -> 0 | I165: =SUM(I159:I164) -> 0 | J165: =SUM(J159:J164) -> 0 | L165: =SUM(L159:L167) -> 0
A166: =A132 -> 1 | B166: =B132 -> 4 | C166: Ужин 2 | D166: кисломол.
D167: булочное
D168: напиток
D169: фрукты
D172: итого
A173: =A132 -> 1 | B173: =B132 -> 4 | C173: Итого за день:
A174: 1 | B174: 5 | C174: Завтрак | D174: гор.блюдо | E174: Каша молочная пшеничная с маслом | F174: 203 | G174: 9,11 | H174: 5,37 | I174: 43.94 | J174: 260.58 | K174: 302/04
D176: гор.напиток | E176: Чай полусладкий с молоком с мармиладом | F176: 216 | G176: 1.65 | H176: 1.3 | I176: 19.84 | J176: 97.67 | K176: ТТК-437
D177: хлеб | E177: Бутерброд с маслом | F177: 40 | G177: 2.38 | H177: 7,52 | I177: 15,05 | J177: 137.4 | K177: 1/04
D178: фрукты | E178: Десерт фруктовый Апельсин | F178: 140 | G178: 1,26 | H178: 0 | I178: 11,76 | J178: 52.08 | K178: ТТК-495н
D181: итого | F181: =F174+F175+F176+F177+F178+F179+F180 -> 599 | G181: =G174+G175+G176+G177+G178+G179+G180 -> 14.4 | H181: 14.19 | I181: 90.59 | J181: 547.73 | L181: 0
A182: =A174 -> 1 | B182: =B174 -> 5 | C182: Завтрак 2 | D182: фрукты
D185: итого
A186: =A174 -> 1 | B186: =B174 -> 5 | C186: Обед | D186: закуска
D187: 1 блюдо
D188: 2 блюдо
D189: гарнир
D190: напиток
D191: хлеб бел.
D192: хлеб черн.
D195: итого
A196: =A174 -> 1 | B196: =B174 -> 5 | C196: Полдник | D196: булочное
D197: напиток
D200: итого | F200: =SUM(F196:F199) -> 0 | G200: =SUM(G196:G199) -> 0 | H200: =SUM(H196:H199) -> 0 | I200: =SUM(I196:I199) -> 0 | J200: =SUM(J196:J199) -> 0 | L200: =SUM(L193:L199) -> 0
A201: =A174 -> 1 | B201: =B174 -> 5 | C201: Ужин | D201: гор.блюдо
D202: гарнир
D203: напиток
D204: хлеб
D207: итого | F207: =SUM(F201:F206) -> 0 | G207: =SUM(G201:G206) -> 0 | H207: =SUM(H201:H206) -> 0 | I207: =SUM(I201:I206) -> 0 | J207: =SUM(J201:J206) -> 0 | L207: =SUM(L201:L209) -> 0
A208: =A174 -> 1 | B208: =B174 -> 5 | C208: Ужин 2 | D208: кисломол.
D209: булочное
D210: напиток
D211: фрукты
A215: =A174 -> 1 | B215: =B174 -> 5
A216: 1 | B216: 6 | C216: Завтрак | D216: гор.блюдо
D218: гор.напиток
D219: хлеб
D220: фрукты
D223: итого | F223: =SUM(F216:F222) -> 0 | G223: =SUM(G216:G222) -> 0 | H223: =SUM(H216:H222) -> 0 | I223: =SUM(I216:I222) -> 0 | J223: =SUM(J216:J222) -> 0 | L223: =SUM(L216:L222) -> 0
A224: =A216 -> 1 | B224: =B216 -> 6 | C224: Завтрак 2 | D224: фрукты
D227: итого | F227: =SUM(F224:F226) -> 0 | G227: =SUM(G224:G226) -> 0 | H227: =SUM(H224:H226) -> 0 | I227: =SUM(I224:I226) -> 0 | J227: =SUM(J224:J226) -> 0 | L227: =SUM(L224:L232) -> 0
A228: =A216 -> 1 | B228: =B216 -> 6 | C228: Обед | D228: закуска
D229: 1 блюдо
D230: 2 блюдо
D231: гарнир
D232: напиток
D233: хлеб бел.
D234: хлеб черн.
D237: итого | F237: =SUM(F228:F236) -> 0 | G237: =SUM(G228:G236) -> 0 | H237: =SUM(H228:H236) -> 0 | I237: =SUM(I228:I236) -> 0 | J237: =SUM(J228:J236) -> 0 | L237: =SUM(L234:L242) -> 0
A238: =A216 -> 1 | B238: =B216 -> 6 | C238: Полдник | D238: булочное
D239: напиток
D242: итого | F242: =SUM(F238:F241) -> 0 | G242: =SUM(G238:G241) -> 0 | H242: =SUM(H238:H241) -> 0 | I242: =SUM(I238:I241) -> 0 | J242: =SUM(J238:J241) -> 0 | L242: =SUM(L235:L241) -> 0
A243: =A216 -> 1 | B243: =B216 -> 6 | C243: Ужин | D243: гор.блюдо
D244: гарнир
D245: напиток
D246: хлеб
D249: итого | F249: =SUM(F243:F248) -> 0 | G249: =SUM(G243:G248) -> 0 | H249: =SUM(H243:H248) -> 0 | I249: =SUM(I243:I248) -> 0 | J249: =SUM(J243:J248) -> 0 | L249: =SUM(L243:L251) -> 0
A250: =A216 -> 1 | B250: =B216 -> 6 | C250: Ужин 2 | D250: кисломол.
D251: булочное
D252: напиток
D253: фрукты
D256: итого | F256: =SUM(F250:F255) -> 0 | G256: =SUM(G250:G255) -> 0 | H256: =SUM(H250:H255) -> 0 | I256: =SUM(I250:I255) -> 0 | J256: =SUM(J250:J255) -> 0 | L256: =SUM(L250:L258) -> 0
A257: =A216 -> 1 | B257: =B216 -> 6 | C257: Итого за день: | F257: =F223+F227+F237+F242+F249+F256 -> 0 | G257: =G223+G227+G237+G242+G249+G256 -> 0 | H257: =H223+H227+H237+H242+H249+H256 -> 0 | I257: =I223+I227+I237+I242+I249+I256 -> 0 | J257: =J223+J227+J237+J242+J249+J256 -> 0 | L257: =L223+L227+L237+L242+L249+L256 -> 0
A258: 1 | B258: 7 | C258: Завтрак | D258: гор.блюдо
D260: гор.напиток
D261: хлеб
D262: фрукты
D265: итого | F265: =SUM(F258:F264) -> 0 | G265: =SUM(G258:G264) -> 0 | H265: =SUM(H258:H264) -> 0 | I265: =SUM(I258:I264) -> 0 | J265: =SUM(J258:J264) -> 0 | L265: 0
A266: =A258 -> 1 | B266: =B258 -> 7 | C266: Завтрак 2 | D266: фрукты
D269: итого | F269: =SUM(F266:F268) -> 0 | G269: =SUM(G266:G268) -> 0 | H269: =SUM(H266:H268) -> 0 | I269: =SUM(I266:I268) -> 0 | J269: =SUM(J266:J268) -> 0 | L269: =SUM(L266:L274) -> 0
A270: =A258 -> 1 | B270: =B258 -> 7 | C270: Обед | D270: закуска
D271: 1 блюдо
D272: 2 блюдо
D273: гарнир
D274: напиток
D275: хлеб бел.
D276: хлеб черн.
D279: итого | F279: =SUM(F270:F278) -> 0 | G279: =SUM(G270:G278) -> 0 | H279: =SUM(H270:H278) -> 0 | I279: =SUM(I270:I278) -> 0 | J279: =SUM(J270:J278) -> 0 | L279: =SUM(L276:L284) -> 0
A280: =A258 -> 1 | B280: =B258 -> 7 | C280: Полдник | D280: булочное
D281: напиток
D284: итого | F284: =SUM(F280:F283) -> 0 | G284: =SUM(G280:G283) -> 0 | H284: =SUM(H280:H283) -> 0 | I284: =SUM(I280:I283) -> 0 | J284: =SUM(J280:J283) -> 0 | L284: =SUM(L277:L283) -> 0
A285: =A258 -> 1 | B285: =B258 -> 7 | C285: Ужин | D285: гор.блюдо
D286: гарнир
D287: напиток
D288: хлеб
D291: итого | F291: =SUM(F285:F290) -> 0 | G291: =SUM(G285:G290) -> 0 | H291: =SUM(H285:H290) -> 0 | I291: =SUM(I285:I290) -> 0 | J291: =SUM(J285:J290) -> 0 | L291: =SUM(L285:L293) -> 0
A292: =A258 -> 1 | B292: =B258 -> 7 | C292: Ужин 2 | D292: кисломол.
D293: булочное
D294: напиток
D295: фрукты
... 176 more rows
